[Event "EYTCC U18 Open 2019"]
[Site "Pardubice"]
[Date "2019.07.13"]
[Round "3.5"]
[White "Zarubitski, Viachaslau"]
[Black "Gavrilescu, David"]
[Result "0-1"]
[ECO "B13"]
[WhiteElo "2424"]
[BlackElo "2473"]
[Annotator "ChessBase"]
[PlyCount "174"]
[EventDate "2019.07.11"]
[EventType "swiss"]
[EventCountry "CZE"]
[SourceTitle "playchess.com"]
[Source "ChessBase"]
[SourceQuality "1"]
[WhiteTeam "Belarus"]
[BlackTeam "Romania"]
[WhiteTeamCountry "BLR"]
[BlackTeamCountry "ROU"]
[TimeControl "40/5400+30:1800+30"]

1. e4 {[%emt 0:00:00]} c6 {[%emt 0:00:02]} 2. d4 {[%emt 0:00:00]} d5 {[%emt 0:00:40]} 3. exd5 {[%emt 0:00:00]} cxd5 {[%emt 0:00:08]} 4. Bd3 {[%emt 0:00:00]} Nc6 {[%emt 0:00:28]} 5. c3 {[%emt 0:00:00]} Qc7 {[%emt 0:02:08]} 6. Ne2 {[%emt 0:00:00]} Bg4 {[%emt 0:01:03]} 7. O-O {[%emt 0:00:10]} Bh5 {[%emt 0:01:23]} 8. Qe1 {[%emt 0:04:02]} Bg6 {[%emt 0:02:39]} 9. Nf4 {[%emt 0:00:25]} Bxd3 {[%emt 0:03:05]} 10. Nxd3 {[%emt 0:00:01]} e6 {[%emt 0:00:09]} 11. Bf4 {[%emt 0:00:26]} Bd6 {[%emt 0:00:35]} 12. Bxd6 {[%emt 0:02:06]} Qxd6 {[%emt 0:00:03]} 13. Nd2 {[%emt 0:00:23]} Nf6 {[%emt 0:01:56]} 14. Nf3 {[%emt 0:03:44]} Qc7 {[%emt 0:08:58]} 15. Nfe5 {[%emt 0:04:04]} O-O {[%emt 0:08:48]} 16. Qe2 {[%emt 0:01:07]} Nxe5 {[%emt 0:06:04]} 17. Nxe5 {[%emt 0:00:37]} Ne4 {[%emt 0:03:06]} 18. Rad1 {[%emt 0:03:34]} Nd6 {[%emt 0:08:03]} 19. Rd3 {[%emt 0:02:16]} Nc4 {[%emt 0:08:51]} 20. Re1 {[%emt 0:09:10]} Nxe5 {[%emt 0:02:03]} 21. dxe5 {[%emt 0:02:14]} Qc4 {[%emt 0:03:17]} 22. a3 {[%emt 0:01:42]} Rac8 {[%emt 0:02:18]} 23. Qd2 {[%emt 0:00:36]} Qg4 {[%emt 0:06:48]} 24. Rd4 {[%emt 0:05:42]} Qf5 {[%emt 0:01:55]} 25. h3 {[%emt 0:05:54]} b5 {[%emt 0:04:05]} 26. a4 {[%emt 0:04:02]} bxa4 {[%emt 0:05:50]} 27. Rxa4 {[%emt 0:00:52]} Rc7 {[%emt 0:00:02]} 28. Rg4 {[%emt 0:08:27]} h6 {[%emt 0:03:09]} 29. Re3 {[%emt 0:03:28]} Rc4 {[%emt 0:01:32]} 30. Reg3 {[%emt 0:17:31]} Rxg4 {[%emt 0:01:18]} 31. Rxg4 {[%emt 0:01:17]} Rb8 {[%emt 0:01:02]} 32. Qe2 {[%emt 0:05:40]} Qb1+ {[%emt 0:02:30]} 33. Kh2 {[%emt 0:00:00]} Rxb2 {[%emt 0:00:22]} 34. Qe3 {[%emt 0:00:01]} Qf5 {[%emt 0:00:58]} 35. Rf4 {[%emt 0:00:22]} Re2 {[%emt 0:00:12]} 36. Qxe2 {[%emt 0:03:54]} Qxf4+ {[%emt 0:00:20]} 37. g3 {[%emt 0:00:01]} Qc4 {[%emt 0:03:08]} 38. Qb2 {[%emt 0:00:30]} a5 {[%emt 0:00:46]} 39. Qb8+ {[%emt 0:00:38]} Kh7 {[%emt 0:00:01]} 40. h4 {[%emt 0:13:01]} Qxc3 {[%emt 0:09:04]} 41. Qb1+ {[%emt 0:31:55]} g6 {[%emt 0:30:08]} 42. h5 {[%emt 0:00:00]} Qxe5 {[%emt 0:00:00]} 43. hxg6+ {[%emt 0:00:00]} fxg6 {[%emt 0:00:00]} 44. Qb7+ {[%emt 0:00:00]} Qg7 {[%emt 0:00:00]} 45. Qa6 {[%emt 0:00:00]} Qc7 {[%emt 0:00:00]} 46. Qxe6 {[%emt 0:00:00]} Qa7 {[%emt 0:00:00]} 47. f4 {[%emt 0:00:00]} a4 {[%emt 0:00:00]} 48. Qxd5 {[%emt 0:00:00]} a3 {[%emt 0:00:00]} 49. Qa2 {[%emt 0:00:00]} Kg7 {[%emt 0:00:00]} 50. Qa1+ {[%emt 0:00:00]} Kf7 {[%emt 0:00:00]} 51. Qa2+ {[%emt 0:00:00]} Ke7 {[%emt 0:00:00]} 52. Qe2+ {[%emt 0:00:00]} Kf6 {[%emt 0:00:00]} 53. Qe5+ {[%emt 0:00:00]} Kf7 {[%emt 0:00:00]} 54. Qd5+ {[%emt 0:00:00]} Kg7 {[%emt 0:00:00]} 55. Qa2 {[%emt 0:00:00]} Qa6 {[%emt 0:01:49]} 56. Qd2 {[%emt 0:00:00]} Qf6 {[%emt 0:02:44]} 57. Qa5 {[%emt 0:00:00]} Qd6 {[%emt 0:00:28]} 58. Qc3+ {[%emt 0:00:00]} Kf7 {[%emt 0:00:07]} 59. Qb3+ {[%emt 0:00:00]} Ke7 {[%emt 0:00:28]} 60. Qc3 {[%emt 0:00:00]} Kd7 {[%emt 0:00:50]} 61. Qe3 {[%emt 0:00:00]} Kc6 {[%emt 0:01:31]} 62. Qf3+ {[%emt 0:01:25]} Kb5 {[%emt 0:01:23]} 63. Qb3+ {[%emt 0:01:48]} Qb4 {[%emt 0:00:16]} 64. Qd5+ {[%emt 0:00:58]} Qc5 {[%emt 0:00:14]} 65. Qb3+ {[%emt 0:01:46]} Ka5 {[%emt 0:00:36]} 66. Qa2 {[%emt 0:02:24]} Qc1 {[%emt 0:01:07]} 67. Qd5+ {[%emt 0:00:43]} Kb4 {[%emt 0:00:09]} 68. Kh3 {[%emt 0:01:33]} Qc2 {[%emt 0:02:23]} 69. Qd6+ {[%emt 0:01:18]} Kb3 {[%emt 0:00:06]} 70. Qb6+ {[%emt 0:00:23]} Ka2 {[%emt 0:00:20]} 71. Qe6+ {[%emt 0:00:16]} Kb2 {[%emt 0:00:40]} 72. Qf6+ {[%emt 0:01:01]} Qc3 {[%emt 0:01:15]} 73. Qb6+ {[%emt 0:00:01]} Kc1 {[%emt 0:00:20]} 74. Qg1+ {[%emt 0:00:24]} Kc2 {[%emt 0:00:37]} 75. Qf2+ {[%emt 0:01:10]} Kc1 {[%emt 0:00:33]} 76. Qg1+ {[%emt 0:00:08]} Kb2 {[%emt 0:00:33]} 77. Qb6+ {[%emt 0:00:07]} Kc2 {[%emt 0:00:30]} 78. Qf2+ {[%emt 0:00:40]} Kd3 {[%emt 0:00:11]} 79. Qf1+ {[%emt 0:01:55]} Ke3 {[%emt 0:00:43]} 80. Qg1+ {[%emt 0:00:16]} Ke4 {[%emt 0:00:35]} 81. Qg2+ {[%emt 0:00:40]} Qf3 {[%emt 0:00:29]} 82. Qc2+ {[%emt 0:00:06]} Ke3 {[%emt 0:00:25]} 83. Qc5+ {[%emt 0:01:21]} Ke2 {[%emt 0:00:06]} 84. Qc2+ {[%emt 0:00:22]} Kf1 {[%emt 0:00:13]} 85. Qc1+ {[%emt 0:00:31]} Kf2 {[%emt 0:00:05]} 86. Qc2+ {[%emt 0:00:05]} Kg1 {[%emt 0:00:04]} 87. Qc5+ {[%emt 0:01:33]} Qf2 {[%emt 0:00:08]} 0-1

[Event "EYTCC U18 Open 2019"]
[Site "Pardubice"]
[Date "2019.07.13"]
[Round "3.6"]
[White "Stoleriu, George"]
[Black "Lazavik, Denis"]
[Result "1/2-1/2"]
[ECO "C90"]
[WhiteElo "2360"]
[BlackElo "2339"]
[Annotator "NA"]
[PlyCount "195"]
[EventDate "2019.07.11"]
[EventType "swiss"]
[EventCountry "CZE"]
[SourceTitle "playchess.com"]
[Source "ChessBase"]
[SourceQuality "1"]
[WhiteTeam "Romania"]
[BlackTeam "Belarus"]
[WhiteTeamCountry "ROU"]
[BlackTeamCountry "BLR"]
[TimeControl "40/5400+30:1800+30"]

1. e4 {[%emt 0:00:00]} e5 {[%emt 0:00:00]} 2. Nf3 {[%emt 0:00:00]} Nc6 {[%emt 0:00:02]} 3. Bb5 {[%emt 0:00:01]} a6 {[%emt 0:00:23]} 4. Ba4 {[%emt 0:00:05]} Nf6 {[%emt 0:00:23]} 5. d3 {[%emt 0:00:05]} b5 {[%emt 0:00:21]} 6. Bb3 {[%emt 0:00:09]} Be7 {[%emt 0:00:27]} 7. O-O {[%emt 0:00:36]} d6 {[%emt 0:00:29]} 8. c3 {[%emt 0:00:08]} O-O {[%emt 0:00:46]} 9. Re1 {[%emt 0:00:28]} Na5 {[%emt 0:00:44]} 10. Bc2 {[%emt 0:00:04]} c5 {[%emt 0:00:59]} 11. Nbd2 {[%emt 0:00:38]} Nc6 {[%emt 0:00:45]} 12. Nf1 {[%emt 0:01:15]} h6 {[%emt 0:01:25]} 13. Ne3 {[%emt 0:05:25]} Be6 {[%emt 0:02:31]} 14. d4 {[%emt 0:01:45]} cxd4 {[%emt 0:01:53]} 15. cxd4 {[%emt 0:00:07]} Nxd4 {[%emt 0:00:48]} 16. Nxd4 {[%emt 0:00:08]} exd4 {[%emt 0:00:05]} 17. Qxd4 {[%emt 0:00:06]} Rc8 {[%emt 0:04:21]} 18. Qd3 {[%emt 0:05:41]} Re8 {[%emt 0:09:37]} 19. a4 {[%emt 0:07:14]} Qb6 {[%emt 0:10:29]} 20. axb5 {[%emt 0:05:32]} Qxb5 {[%emt 0:10:31]} 21. Qd1 {[%emt 0:19:49]} Qb7 {[%emt 0:05:27]} 22. Bd3 {[%emt 0:02:28]} Ra8 {[%emt 0:03:08]} 23. Nc2 {[%emt 0:03:36]} Bf8 {[%emt 0:05:24]} 24. Nd4 {[%emt 0:04:51]} Bd7 {[%emt 0:04:58]} 25. Qe2 {[%emt 0:12:03]} Nxe4 {[%emt 0:04:49]} 26. Bxa6 {[%emt 0:15:45]} Nc5 {[%emt 0:04:02]} 27. Bxb7 {[%emt 0:06:06]} Rxe2 {[%emt 0:00:26]} 28. Nxe2 {[%emt 0:00:13]} Rxa1 {[%emt 0:00:06]} 29. Bf3 {[%emt 0:01:37]} Nd3 {[%emt 0:02:55]} 30. Rf1 {[%emt 0:00:12]} Bc8 {[%emt 0:14:50]} 31. g3 {[%emt 0:08:46]} Ba6 {[%emt 0:02:46]} 32. Kg2 {[%emt 0:00:05]} g5 {[%emt 0:04:05]} 33. h4 {[%emt 0:00:10]} gxh4 {[%emt 0:01:06]} 34. gxh4 {[%emt 0:00:03]} Bg7 {[%emt 0:00:18]} 35. b3 {[%emt 0:01:21]} Rb1 {[%emt 0:03:13]} 36. Be3 {[%emt 0:00:54]} Rxb3 {[%emt 0:00:11]} 37. Rg1 {[%emt 0:00:31]} Rb4 {[%emt 0:01:30]} 38. Ng3 {[%emt 0:00:25]} Ne5 {[%emt 0:01:29]} 39. Nf5 {[%emt 0:00:33]} Ng6 {[%emt 0:00:31]} 40. Rh1 {[%emt 0:00:31]} Bd3 {[%emt 0:00:34]} 41. h5 {[%emt 0:09:55]} Bxf5 {[%emt 0:00:55]} 42. hxg6 {[%emt 0:00:05]} Bxg6 {[%emt 0:05:11]} 43. Bxh6 {[%emt 0:00:07]} Bxh6 {[%emt 0:00:31]} 44. Rxh6 {[%emt 0:00:03]} Kg7 {[%emt 0:00:13]} 45. Rh1 {[%emt 0:00:04]} Kf6 {[%emt 0:01:23]} 46. Ra1 {[%emt 0:03:39]} Be4 {[%emt 0:01:40]} 47. Bxe4 {[%emt 0:00:08]} Rxe4 {[%emt 0:00:04]} 48. Kf3 {[%emt 0:00:55]} Re5 {[%emt 0:00:21]} 49. Ra6 {[%emt 0:01:52]} Ke6 {[%emt 0:01:08]} 50. Kf4 {[%emt 0:00:24]} Re2 {[%emt 0:00:47]} 51. f3 {[%emt 0:00:47]} Rb2 {[%emt 0:01:52]} 52. Ra5 {[%emt 0:01:27]} Rb4+ {[%emt 0:00:24]} 53. Ke3 {[%emt 0:00:04]} d5 {[%emt 0:00:53]} 54. f4 {[%emt 0:10:46]} Rb3+ {[%emt 0:00:22]} 55. Ke2 {[%emt 0:00:41]} Rb6 {[%emt 0:03:19]} 56. Ke3 {[%emt 0:00:41]} Rd6 {[%emt 0:00:22]} 57. Kd4 {[%emt 0:03:35]} f6 {[%emt 0:01:05]} 58. Ke3 {[%emt 0:01:49]} Kf5 {[%emt 0:03:27]} 59. Kf3 {[%emt 0:00:03]} Kg6 {[%emt 0:01:27]} 60. Ke3 {[%emt 0:00:10]} Rd7 {[%emt 0:00:55]} 61. Rb5 {[%emt 0:00:12]} Kf5 {[%emt 0:01:05]} 62. Kf3 {[%emt 0:00:03]} Ke6 {[%emt 0:00:09]} 63. Ke3 {[%emt 0:01:30]} Kf7 {[%emt 0:05:11]} 64. Kd4 {[%emt 0:00:33]} Kg6 {[%emt 0:00:48]} 65. Ke3 {[%emt 0:00:04]} Kf5 {[%emt 0:03:10]} 66. Kf3 {[%emt 0:00:03]} Ke6 {[%emt 0:00:47]} 67. Ke3 {[%emt 0:00:03]} Ra7 {[%emt 0:00:55]} 68. Ke2 {[%emt 0:00:27]} Ra4 {[%emt 0:00:55]} 69. Kf3 {[%emt 0:00:23]} Ra3+ {[%emt 0:00:05]} 70. Ke2 {[%emt 0:00:09]} d4 {[%emt 0:00:58]} 71. Kf2 {[%emt 0:00:10]} Re3 {[%emt 0:02:25]} 72. Ra5 {[%emt 0:00:12]} Rh3 {[%emt 0:00:37]} 73. Kg2 {[%emt 0:00:47]} Rb3 {[%emt 0:01:32]} 74. Kf2 {[%emt 0:00:08]} Rc3 {[%emt 0:01:29]} 75. Rb5 {[%emt 0:01:09]} Ra3 {[%emt 0:00:47]} 76. Ke2 {[%emt 0:02:07]} Rh3 {[%emt 0:00:13]} 77. Kf2 {[%emt 0:00:46]} d3 {[%emt 0:00:45]} 78. Ra5 {[%emt 0:00:25]} d2 {[%emt 0:00:33]} 79. Ke2 {[%emt 0:00:50]} Rh2+ {[%emt 0:00:53]} 80. Kd1 {[%emt 0:00:04]} Rf2 {[%emt 0:00:12]} 81. Rb5 {[%emt 0:01:11]} Rg2 {[%emt 0:01:03]} 82. f5+ {[%emt 0:01:22]} Kd6 {[%emt 0:00:07]} 83. Ra5 {[%emt 0:00:04]} Rf2 {[%emt 0:00:36]} 84. Rb5 {[%emt 0:00:14]} Ke7 {[%emt 0:00:46]} 85. Rb7+ {[%emt 0:00:36]} Ke8 {[%emt 0:00:14]} 86. Ra7 {[%emt 0:00:29]} Kf8 {[%emt 0:00:40]} 87. Rb7 {[%emt 0:00:14]} Rxf5 {[%emt 0:00:09]} 88. Kxd2 {[%emt 0:00:03]} Re5 {[%emt 0:00:05]} 89. Kd3 {[%emt 0:00:12]} f5 {[%emt 0:00:33]} 90. Kd4 {[%emt 0:00:07]} Re4+ {[%emt 0:00:07]} 91. Kd3 {[%emt 0:00:03]} Re6 {[%emt 0:00:06]} 92. Kd2 {[%emt 0:00:47]} f4 {[%emt 0:00:44]} 93. Rb4 {[%emt 0:00:09]} Rf6 {[%emt 0:00:03]} 94. Ke2 {[%emt 0:00:03]} f3+ {[%emt 0:00:15]} 95. Kf2 {[%emt 0:00:03]} Kf7 {[%emt 0:00:29]} 96. Rb3 {[%emt 0:00:02]} Kg6 {[%emt 0:00:23]} 97. Rxf3 {[%emt 0:00:02]} Rxf3+ {[%emt 0:00:06]} 98. Kxf3 {[%emt 0:00:03]} 1/2-1/2

[Event "EYTCC U18 Open 2019"]
[Site "Pardubice"]
[Date "2019.07.13"]
[Round "3.7"]
[White "Tsaruk, Maksim"]
[Black "Ileana, George"]
[Result "1/2-1/2"]
[ECO "B94"]
[WhiteElo "2230"]
[BlackElo "2344"]
[Annotator "NA"]
[PlyCount "201"]
[EventDate "2019.07.11"]
[EventType "swiss"]
[EventCountry "CZE"]
[SourceTitle "playchess.com"]
[Source "ChessBase"]
[SourceQuality "1"]
[WhiteTeam "Belarus"]
[BlackTeam "Romania"]
[WhiteTeamCountry "BLR"]
[BlackTeamCountry "ROU"]
[TimeControl "40/5400+30:1800+30"]

1. e4 {[%emt 0:00:00]} c5 {[%emt 0:00:00]} 2. Nf3 {[%emt 0:00:00]} d6 {[%emt 0:00:00]} 3. d4 {[%emt 0:00:00]} cxd4 {[%emt 0:00:00]} 4. Nxd4 {[%emt 0:00:00]} Nf6 {[%emt 0:00:00]} 5. Nc3 {[%emt 0:00:07]} a6 {[%emt 0:00:00]} 6. Bg5 {[%emt 0:08:25]} Nbd7 {[%emt 0:00:01]} 7. Qd2 {[%emt 0:00:14]} Qc7 {[%emt 0:03:31]} 8. O-O-O {[%emt 0:00:25]} e6 {[%emt 0:00:07]} 9. Bd3 {[%emt 0:12:11]} Be7 {[%emt 0:00:11]} 10. Rhe1 {[%emt 0:00:32]} h6 {[%emt 0:04:58]} 11. Bh4 {[%emt 0:00:40]} b5 {[%emt 0:01:34]} 12. a3 {[%emt 0:16:28]} Bb7 {[%emt 0:00:27]} 13. f4 {[%emt 0:08:46]} Rc8 {[%emt 0:04:44]} 14. Qe2 {[%emt 0:15:02]} Qc5 {[%emt 0:26:54]} 15. Bf2 {[%emt 0:13:58]} Qh5 {[%emt 0:01:19]} 16. Qxh5 {[%emt 0:06:06]} Nxh5 {[%emt 0:00:08]} 17. g3 {[%emt 0:00:30]} Nhf6 {[%emt 0:02:18]} 18. Nb3 {[%emt 0:01:42]} Nc5 {[%emt 0:01:45]} 19. Nxc5 {[%emt 0:00:49]} dxc5 {[%emt 0:02:27]} 20. e5 {[%emt 0:00:07]} Nd5 {[%emt 0:00:46]} 21. Nxd5 {[%emt 0:00:07]} Bxd5 {[%emt 0:01:26]} 22. Be4 {[%emt 0:00:52]} Bxe4 {[%emt 0:01:37]} 23. Rxe4 {[%emt 0:00:02]} g5 {[%emt 0:00:14]} 24. fxg5 {[%emt 0:05:41]} hxg5 {[%emt 0:00:49]} 25. h4 {[%emt 0:04:06]} gxh4 {[%emt 0:00:49]} 26. gxh4 {[%emt 0:00:03]} Rd8 {[%emt 0:00:17]} 27. c4 {[%emt 0:01:22]} Rxd1+ {[%emt 0:01:23]} 28. Kxd1 {[%emt 0:00:04]} Rh5 {[%emt 0:00:16]} 29. Ke2 {[%emt 0:00:55]} bxc4 {[%emt 0:03:10]} 30. Bg3 {[%emt 0:00:30]} Kd7 {[%emt 0:00:47]} 31. Rxc4 {[%emt 0:00:27]} Kc6 {[%emt 0:00:06]} 32. Kf3 {[%emt 0:00:43]} Rh7 {[%emt 0:08:15]} 33. b3 {[%emt 0:04:08]} Kd5 {[%emt 0:04:39]} 34. Ra4 {[%emt 0:00:03]} a5 {[%emt 0:01:27]} 35. Rxa5 {[%emt 0:00:35]} Bxh4 {[%emt 0:00:14]} 36. b4 {[%emt 0:00:26]} Be7 {[%emt 0:01:07]} 37. Ra7 {[%emt 0:01:13]} cxb4 {[%emt 0:02:04]} 38. Rxe7 {[%emt 0:00:41]} bxa3 {[%emt 0:00:02]} 39. Ra7 {[%emt 0:00:07]} Rh5 {[%emt 0:01:59]} 40. Ra5+ {[%emt 0:00:51]} Kc4 {[%emt 0:04:41]} 41. Rxa3 {[%emt 0:30:23]} f6 {[%emt 0:30:48]} 42. exf6 {[%emt 0:00:03]} Rf5+ {[%emt 0:00:08]} 43. Ke4 {[%emt 0:00:03]} Rxf6 {[%emt 0:00:05]} 44. Ra6 {[%emt 0:01:12]} Rg6 {[%emt 0:00:31]} 45. Bf4 {[%emt 0:00:16]} Kb5 {[%emt 0:00:43]} 46. Rd6 {[%emt 0:00:37]} Kc5 {[%emt 0:00:41]} 47. Ke5 {[%emt 0:00:49]} Kc4 {[%emt 0:00:16]} 48. Rd4+ {[%emt 0:00:06]} Kc3 {[%emt 0:00:27]} 49. Bd2+ {[%emt 0:00:11]} Kc2 {[%emt 0:00:13]} 50. Bb4 {[%emt 0:00:16]} Rg5+ {[%emt 0:00:54]} 51. Kxe6 {[%emt 0:00:08]} Rb5 {[%emt 0:00:05]} 52. Kd6 {[%emt 0:00:56]} Kb3 {[%emt 0:00:39]} 53. Bc5 {[%emt 0:00:08]} Rb8 {[%emt 0:00:24]} 54. Kd5 {[%emt 0:00:33]} Rd8+ {[%emt 0:01:21]} 55. Bd6 {[%emt 0:00:05]} Re8 {[%emt 0:02:13]} 56. Rd3+ {[%emt 0:00:17]} Kc2 {[%emt 0:00:18]} 57. Rh3 {[%emt 0:00:07]} Re2 {[%emt 0:00:24]} 58. Bb4 {[%emt 0:00:18]} Rg2 {[%emt 0:00:25]} 59. Bc3 {[%emt 0:02:38]} Rg4 {[%emt 0:10:28]} 60. Bd4 {[%emt 0:00:59]} Rg2 {[%emt 0:01:49]} 61. Kc4 {[%emt 0:00:04]} Kd2 {[%emt 0:00:50]} 62. Re3 {[%emt 0:00:00]} Re2 {[%emt 0:00:00]} 63. Ra3 {[%emt 0:00:00]} Kc2 {[%emt 0:00:00]} 64. Be3 {[%emt 0:00:00]} Kd1 {[%emt 0:00:00]} 65. Kd4 {[%emt 0:00:00]} Rc2 {[%emt 0:00:00]} 66. Kd3 {[%emt 0:00:00]} Rd2+ {[%emt 0:00:00]} 67. Ke4 {[%emt 0:00:00]} Rc2 {[%emt 0:00:00]} 68. Ra1+ {[%emt 0:00:00]} Ke2 {[%emt 0:00:00]} 69. Bd4 {[%emt 0:00:00]} Kd2 {[%emt 0:00:00]} 70. Ra3 {[%emt 0:00:00]} Ke2 {[%emt 0:00:00]} 71. Bc3 {[%emt 0:00:00]} Kd1 {[%emt 0:00:00]} 72. Kd4 {[%emt 0:00:00]} Ke2 {[%emt 0:00:00]} 73. Ra1 {[%emt 0:00:00]} Kf3 {[%emt 0:00:00]} 74. Kd3 {[%emt 0:00:00]} Rg2 {[%emt 0:00:00]} 75. Bd4 {[%emt 0:00:00]} Rg6 {[%emt 0:00:00]} 76. Be5 {[%emt 0:00:00]} Kg4 {[%emt 0:00:00]} 77. Ke4 {[%emt 0:00:00]} Kg5 {[%emt 0:00:00]} 78. Rf1 {[%emt 0:00:00]} Kg4 {[%emt 0:00:00]} 79. Bf6 {[%emt 0:00:00]} Kh5 {[%emt 0:00:00]} 80. Kf5 {[%emt 0:00:00]} Rg5+ {[%emt 0:00:00]} 81. Ke6 {[%emt 0:00:00]} Rg2 {[%emt 0:00:00]} 82. Rf4 {[%emt 0:00:00]} Rg4 {[%emt 0:00:00]} 83. Rf5+ {[%emt 0:00:00]} Kg6 {[%emt 0:00:00]} 84. Rf2 {[%emt 0:00:00]} Re4+ {[%emt 0:00:37]} 85. Be5 {[%emt 0:00:00]} Rg4 {[%emt 0:00:17]} 86. Rf7 {[%emt 0:00:00]} Kg5 {[%emt 0:01:05]} 87. Rf8 {[%emt 0:00:00]} Kg6 {[%emt 0:00:12]} 88. Bf4 {[%emt 0:00:00]} Kh5 {[%emt 0:02:34]} 89. Rh8+ {[%emt 0:00:00]} Kg6 {[%emt 0:00:09]} 90. Ke5 {[%emt 0:00:00]} Kf7 {[%emt 0:12:52]} 91. Kf5 {[%emt 0:00:00]} Rg8 {[%emt 0:00:44]} 92. Rh7+ {[%emt 0:00:00]} Rg7 {[%emt 0:00:11]} 93. Rh1 {[%emt 0:03:50]} Rg2 {[%emt 0:00:07]} 94. Rh3 {[%emt 0:08:51]} Rg1 {[%emt 0:00:34]} 95. Rh2 {[%emt 0:00:06]} Ke7 {[%emt 0:03:25]} 96. Rh7+ {[%emt 0:00:14]} Kd8 {[%emt 0:00:14]} 97. Be5 {[%emt 0:02:12]} Rc1 {[%emt 0:01:41]} 98. Ke6 {[%emt 0:03:34]} Kc8 {[%emt 0:00:24]} 99. Rh8+ {[%emt 0:00:29]} Kb7 {[%emt 0:00:11]} 100. Rb8+ {[%emt 0:00:04]} Ka6 {[%emt 0:00:18]} 101. Kd5 {[%emt 0:00:15]} 1/2-1/2

[Event "EYTCC U18 Open 2019"]
[Site "Pardubice"]
[Date "2019.07.13"]
[Round "3.8"]
[White "Ognean, Mihnea-Ionut"]
[Black "Runets, Ivan"]
[Result "0-1"]
[ECO "B45"]
[WhiteElo "2287"]
[BlackElo "2239"]
[Annotator "NA"]
[PlyCount "70"]
[EventDate "2019.07.11"]
[EventType "swiss"]
[EventCountry "CZE"]
[SourceTitle "playchess.com"]
[Source "ChessBase"]
[SourceQuality "1"]
[WhiteTeam "Romania"]
[BlackTeam "Belarus"]
[WhiteTeamCountry "ROU"]
[BlackTeamCountry "BLR"]
[TimeControl "40/5400+30:1800+30"]

1. e4 {[%emt 0:00:00]} c5 {[%emt 0:00:41]} 2. Nf3 {[%emt 0:00:00]} Nc6 {[%emt 0:00:05]} 3. d4 {[%emt 0:00:00]} cxd4 {[%emt 0:00:04]} 4. Nxd4 {[%emt 0:00:00]} e6 {[%emt 0:00:06]} 5. Nc3 {[%emt 0:00:00]} d6 {[%emt 0:00:04]} 6. Be3 {[%emt 0:00:50]} Nf6 {[%emt 0:00:06]} 7. f3 {[%emt 0:00:50]} a6 {[%emt 0:06:07]} 8. Qd2 {[%emt 0:00:17]} Qc7 {[%emt 0:00:10]} 9. g4 {[%emt 0:04:02]} h6 {[%emt 0:00:34]} 10. O-O-O {[%emt 0:00:32]} Bd7 {[%emt 0:03:39]} 11. h4 {[%emt 0:00:37]} Ne5 {[%emt 0:05:00]} 12. Rg1 {[%emt 0:04:13]} g6 {[%emt 0:08:10]} 13. g5 {[%emt 0:04:43]} Nh5 {[%emt 0:07:50]} 14. f4 {[%emt 0:01:01]} Nc4 {[%emt 0:00:49]} 15. Bxc4 {[%emt 0:00:03]} Qxc4 {[%emt 0:00:04]} 16. f5 {[%emt 0:03:50]} b5 {[%emt 0:20:12]} 17. fxg6 {[%emt 0:05:35]} fxg6 {[%emt 0:07:42]} 18. b3 {[%emt 0:09:15]} Qc7 {[%emt 0:02:36]} 19. gxh6 {[%emt 0:00:09]} Rc8 {[%emt 0:01:32]} 20. Nce2 {[%emt 0:30:13]} e5 {[%emt 0:04:38]} 21. Kb1 {[%emt 0:04:53]} exd4 {[%emt 0:05:00]} 22. Nxd4 {[%emt 0:00:08]} Nf6 {[%emt 0:02:23]} 23. Bf4 {[%emt 0:09:19]} Ng4 {[%emt 0:10:08]} 24. Qe2 {[%emt 0:04:13]} Ne5 {[%emt 0:00:31]} 25. h5 {[%emt 0:00:50]} g5 {[%emt 0:03:48]} 26. Bxg5 {[%emt 0:02:41]} Bxh6 {[%emt 0:01:45]} 27. Qe3 {[%emt 0:01:14]} Ng4 {[%emt 0:01:30]} 28. Qf4 {[%emt 0:01:56]} Rf8 {[%emt 0:00:14]} 29. Qc1 {[%emt 0:00:02]} Bg7 {[%emt 0:01:47]} 30. h6 {[%emt 0:00:48]} Be5 {[%emt 0:01:16]} 31. Rd3 {[%emt 0:03:43]} Qc5 {[%emt 0:01:33]} 32. Nf3 {[%emt 0:05:41]} Rxf3 {[%emt 0:01:12]} 33. Rxf3 {[%emt 0:01:18]} Qd4 {[%emt 0:00:08]} 34. c3 {[%emt 0:00:28]} Qxe4+ {[%emt 0:00:04]} 35. Qc2 {[%emt 0:00:03]} Qxf3 {[%emt 0:00:11]} 0-1

[Event "EYTCC U18 Open 2019"]
[Site "Pardubice"]
[Date "2019.07.13"]
[Round "3.9"]
[White "Jakab, Bela"]
[Black "Willow, Jonah B"]
[Result "1/2-1/2"]
[ECO "B22"]
[WhiteElo "2278"]
[BlackElo "2343"]
[Annotator "NA"]
[PlyCount "91"]
[EventDate "2019.07.11"]
[EventType "swiss"]
[EventCountry "CZE"]
[SourceTitle "playchess.com"]
[Source "ChessBase"]
[SourceQuality "1"]
[WhiteTeam "Slovakia"]
[BlackTeam "England"]
[WhiteTeamCountry "SVK"]
[BlackTeamCountry "ENG"]
[TimeControl "40/5400+30:1800+30"]

1. e4 {[%emt 0:00:00]} c5 {[%emt 0:00:00]} 2. c3 {[%emt 0:00:00]} d5 {[%emt 0:00:00]} 3. exd5 {[%emt 0:00:00]} Qxd5 {[%emt 0:00:01]} 4. Nf3 {[%emt 0:00:01]} Nf6 {[%emt 0:00:09]} 5. Na3 {[%emt 0:00:14]} e6 {[%emt 0:00:46]} 6. d4 {[%emt 0:01:49]} a6 {[%emt 0:00:06]} 7. Nc2 {[%emt 0:02:21]} Nc6 {[%emt 0:03:31]} 8. Be3 {[%emt 0:00:30]} cxd4 {[%emt 0:01:15]} 9. Ncxd4 {[%emt 0:00:22]} Bd6 {[%emt 0:03:15]} 10. Be2 {[%emt 0:05:37]} O-O {[%emt 0:02:42]} 11. c4 {[%emt 0:07:32]} Qa5+ {[%emt 0:02:50]} 12. Bd2 {[%emt 0:01:26]} Qc7 {[%emt 0:00:52]} 13. Nxc6 {[%emt 0:01:41]} bxc6 {[%emt 0:03:10]} 14. Qc2 {[%emt 0:01:55]} c5 {[%emt 0:04:22]} 15. Bc3 {[%emt 0:04:32]} e5 {[%emt 0:04:59]} 16. Nd2 {[%emt 0:05:06]} Bb7 {[%emt 0:01:21]} 17. f3 {[%emt 0:01:49]} Nh5 {[%emt 0:07:03]} 18. Bd3 {[%emt 0:08:57]} g6 {[%emt 0:07:18]} 19. O-O-O {[%emt 0:03:07]} f5 {[%emt 0:07:56]} 20. g4 {[%emt 0:05:01]} Ng7 {[%emt 0:11:27]} 21. Rhg1 {[%emt 0:06:02]} e4 {[%emt 0:05:59]} 22. fxe4 {[%emt 0:01:17]} fxg4 {[%emt 0:00:36]} 23. Rxg4 {[%emt 0:02:27]} Bxh2 {[%emt 0:02:30]} 24. Nf1 {[%emt 0:08:31]} Bf4+ {[%emt 0:02:20]} 25. Kb1 {[%emt 0:01:44]} Rad8 {[%emt 0:01:46]} 26. Qe2 {[%emt 0:03:10]} Rfe8 {[%emt 0:05:48]} 27. Re1 {[%emt 0:10:22]} Nh5 {[%emt 0:04:20]} 28. e5 {[%emt 0:02:35]} Bc8 {[%emt 0:01:43]} 29. Rg1 {[%emt 0:01:28]} Ng7 {[%emt 0:02:35]} 30. Bc2 {[%emt 0:01:12]} Qf7 {[%emt 0:07:40]} 31. Ng3 {[%emt 0:01:48]} Bxg3 {[%emt 0:01:31]} 32. Rxg3 {[%emt 0:00:05]} Bf5 {[%emt 0:00:13]} 33. Rf1 {[%emt 0:01:47]} Qd7 {[%emt 0:01:50]} 34. Bxf5 {[%emt 0:07:35]} Nxf5 {[%emt 0:00:06]} 35. Rgg1 {[%emt 0:01:01]} Nd4 {[%emt 0:00:54]} 36. Qe4 {[%emt 0:00:27]} Qe6 {[%emt 0:01:52]} 37. Rg5 {[%emt 0:00:38]} Rf8 {[%emt 0:00:27]} 38. Rfg1 {[%emt 0:00:17]} Kg7 {[%emt 0:00:29]} 39. Rh1 {[%emt 0:00:56]} Rf5 {[%emt 0:01:37]} 40. Qh4 {[%emt 0:01:03]} Rh8 {[%emt 0:01:23]} 41. Bxd4 {[%emt 0:06:02]} cxd4 {[%emt 0:01:28]} 42. Rxf5 {[%emt 0:03:08]} Qxf5+ {[%emt 0:00:15]} 43. Ka1 {[%emt 0:00:29]} d3 {[%emt 0:11:27]} 44. Qe7+ {[%emt 0:03:12]} Qf7 {[%emt 0:00:17]} 45. Qd6 {[%emt 0:00:21]} Re8 {[%emt 0:01:34]} 46. Qxd3 {[%emt 0:04:18]} 1/2-1/2